Workbook

Sheet Sheet1
B1: Graphs in Biangular Coordinates
B3: This graphing utility produces the graph
B4: of any linear function involving the angles q and f
C5: in the biangular coordinate system
B6: based on two poles along the horizontal axis.
A9: The first pole is at the origin.
A10: How far to the right is the second pole? | D10: =E10 -> 2 | E10: 2 | F10: 47
C11: (1-6)
A13: In the linear function f = mq + b:
B14: What is the slope m (- 3 to 3)? | D14: =(E14-30)/10 -> -1 | E14: 20 | F14: 47
B16: What is the intercept b (- 5 to 5)? | D16: =E16-5 -> 3 | E16: 8 | F16: 13
A19: Now enter the interval for q : | I19: The graph of the linear biangular function
C20: Minimum angle a = | D20: -1.5 | J20: q = | K20: =m -> -1 | L20: f | M20: =IF(bb>0, " + ", " - ") -> + | N20: =ABS(bb) -> 3
C21: Maximum angle b = | D21: 5
I23: Now trace along the "linear" biangular curve:
I24: q = | J24: =Sheet1!D20+K24*Sheet2!B12 -> 0.80 | K24: 177
I25: f = | J25: =LOOKUP(J24,Sheet2!C2:C503,Sheet2!D2:D503) -> 2.22
I26: x = | J26: =LOOKUP(J24,Sheet2!C3:C504,Sheet2!G3:G504) -> 8.019128424
I27: y = | J27: =LOOKUP(J24,Sheet2!C3:C504,Sheet2!H3:H504) -> 7.987674541
A32: Click each item below for suggestions and investigations
C33: Item 1
C34: Item 2
C35: Item 3
C36: Item 4
C37: Item 5
C38: Item 6
C39: Item 7
C40: Item 8
C41: Item 9
A44: To access/download all the DIGMath Apps for Calculus
A45: Click this link: | C45: DIGMath for Calculus
A47: Created by: Sheldon P. Gordon
A48: Farmingdale State College
A49: Development of this module was supported by the
A50: NSF's Division of Undergraduate Education
A51: under grants DUE-0310123 and DUE-0442160.

Sheet Sheet2
C1: q | D1: f | E1: x = f(t) | F1: y = g(t) | G1: plot x | H1: plot y | I1: Tracing point
C3: =a -> -1.5 | D3: =m*C3+bb -> 4.5 | E3: =D*SIN(D3)*COS(C3)/SIN(C3+D3) -> -0.9799849932 | F3: =D*SIN(C3)*SIN(D3)/SIN(C3+D3) -> 13.81917993 | G3: =E3 -> -0.9799849932 | H3: =F3 -> 13.81917993
C4: =C3+dt -> -1.487025948 | D4: 4.487025948 | E4: -1.155847667 | F4: 13.76551841 | G4: =IF(OR(ABS(E4)>xMax,ABS(F4)>yMax),G3,E4) -> -1.155847667 | H4: =IF(OR(ABS(E4)>xMax,ABS(F4)>yMax),H3,F4) -> 13.76551841 | I4: =Sheet1!J26 -> 8.019128424 | J4: =Sheet1!J27 -> 7.987674541
C5: -1.474051896 | D5: 4.474051896 | E5: -1.330258882 | F5: 13.70731217 | G5: -1.330258882 | H5: 13.70731217
A6: a = | C6: -1.461077844 | D6: 4.461077844 | E6: -1.503101211 | F6: 13.64460038 | G6: -1.503101211 | H6: 13.64460038 | I6: 0 | J6: 0
A7: b = | C7: -1.448103792 | D7: 4.448103792 | E7: -1.674258287 | F7: 13.57742528 | G7: -1.674258287 | H7: 13.57742528 | I7: 2 | J7: 0
C8: -1.435129741 | D8: 4.435129741 | E8: -1.843614875 | F8: 13.50583209 | G8: -1.843614875 | H8: 13.50583209
C9: -1.422155689 | D9: 4.422155689 | E9: -2.011056953 | F9: 13.42986902 | G9: -2.011056953 | H9: 13.42986902
C10: -1.409181637 | D10: 4.409181637 | E10: -2.176471787 | F10: 13.34958719 | G10: -2.176471787 | H10: 13.34958719 | I10: 0 | J10: 0
C11: -1.396207585 | D11: 4.396207585 | E11: -2.339748011 | F11: 13.26504067 | G11: -2.339748011 | H11: 13.26504067 | I11: 1.4 | J11: =3 -> 3
A12: delta t = | B12: =(Sheet1!D21-Sheet1!D20)/501 -> 0.0129740519 | C12: -1.383233533 | D12: 4.383233533 | E12: -2.500775694 | F12: 13.17628639 | G12: -2.500775694 | H12: 13.17628639 | I12: =D -> 2 | J12: 0
C13: -1.370259481 | D13: 4.370259481 | E13: -2.659446423 | F13: 13.08338408 | G13: -2.659446423 | H13: 13.08338408
C14: -1.357285429 | D14: 4.357285429 | E14: -2.81565337 | F14: 12.9863963 | G14: -2.81565337 | H14: 12.9863963
A15: xMax = | B15: 20 | C15: -1.344311377 | D15: 4.344311377 | E15: -2.969291366 | F15: 12.88538836 | G15: -2.969291366 | H15: 12.88538836
A16: yMax = | B16: 50 | C16: -1.331337325 | D16: 4.331337325 | E16: -3.120256972 | F16: 12.78042825 | G16: -3.120256972 | H16: 12.78042825
C17: -1.318363273 | D17: 4.318363273 | E17: -3.268448547 | F17: 12.67158664 | G17: -3.268448547 | H17: 12.67158664
C18: -1.305389222 | D18: 4.305389222 | E18: -3.413766321 | F18: 12.55893682 | G18: -3.413766321 | H18: 12.55893682
C19: -1.29241517 | D19: 4.29241517 | E19: -3.556112453 | F19: 12.44255461 | G19: -3.556112453 | H19: 12.44255461
C20: -1.279441118 | D20: 4.279441118 | E20: -3.695391109 | F20: 12.32251839 | G20: -3.695391109 | H20: 12.32251839
C21: -1.266467066 | D21: 4.266467066 | E21: -3.831508517 | F21: 12.19890897 | G21: -3.831508517 | H21: 12.19890897
C22: -1.253493014 | D22: 4.253493014 | E22: -3.964373032 | F22: 12.07180956 | G22: -3.964373032 | H22: 12.07180956
C23: -1.240518962 | D23: 4.240518962 | E23: -4.093895202 | F23: 11.94130574 | G23: -4.093895202 | H23: 11.94130574
C24: -1.22754491 | D24: 4.22754491 | E24: -4.219987824 | F24: 11.80748538 | G24: -4.219987824 | H24: 11.80748538
C25: -1.214570858 | D25: 4.214570858 | E25: -4.342566004 | F25: 11.67043857 | G25: -4.342566004 | H25: 11.67043857
C26: -1.201596806 | D26: 4.201596806 | E26: -4.461547215 | F26: 11.53025758 | G26: -4.461547215 | H26: 11.53025758
C27: -1.188622754 | D27: 4.188622754 | E27: -4.576851349 | F27: 11.38703679 | G27: -4.576851349 | H27: 11.38703679
C28: -1.175648703 | D28: 4.175648703 | E28: -4.688400778 | F28: 11.24087262 | G28: -4.688400778 | H28: 11.24087262
C29: -1.162674651 | D29: 4.162674651 | E29: -4.796120398 | F29: 11.09186348 | G29: -4.796120398 | H29: 11.09186348
C30: -1.149700599 | D30: 4.149700599 | E30: -4.899937685 | F30: 10.9401097 | G30: -4.899937685 | H30: 10.9401097
C31: -1.136726547 | D31: 4.136726547 | E31: -4.999782743 | F31: 10.78571345 | G31: -4.999782743 | H31: 10.78571345
C32: -1.123752495 | D32: 4.123752495 | E32: -5.09558835 | F32: 10.62877867 | G32: -5.09558835 | H32: 10.62877867
C33: -1.110778443 | D33: 4.110778443 | E33: -5.187290002 | F33: 10.46941103 | G33: -5.187290002 | H33: 10.46941103
C34: -1.097804391 | D34: 4.097804391 | E34: -5.27482596 | F34: 10.30771782 | G34: -5.27482596 | H34: 10.30771782
C35: -1.084830339 | D35: 4.084830339 | E35: -5.358137289 | F35: 10.1438079 | G35: -5.358137289 | H35: 10.1438079
C36: -1.071856287 | D36: 4.071856287 | E36: -5.437167899 | F36: 9.977791632 | G36: -5.437167899 | H36: 9.977791632
C37: -1.058882236 | D37: 4.058882236 | E37: -5.51186458 | F37: 9.809780786 | G37: -5.51186458 | H37: 9.809780786
C38: -1.045908184 | D38: 4.045908184 | E38: -5.582177042 | F38: 9.639888478 | G38: -5.582177042 | H38: 9.639888478
C39: -1.032934132 | D39: 4.032934132 | E39: -5.648057946 | F39: 9.468229091 | G39: -5.648057946 | H39: 9.468229091
C40: -1.01996008 | D40: 4.01996008 | E40: -5.709462937 | F40: 9.294918197 | G40: -5.709462937 | H40: 9.294918197
C41: -1.006986028 | D41: 4.006986028 | E41: -5.766350672 | F41: 9.120072482 | G41: -5.766350672 | H41: 9.120072482
C42: -0.994011976 | D42: 3.994011976 | E42: -5.818682852 | F42: 8.943809662 | G42: -5.818682852 | H42: 8.943809662
C43: -0.9810379242 | D43: 3.981037924 | E43: -5.866424242 | F43: 8.766248409 | G43: -5.866424242 | H43: 8.766248409
C44: -0.9680638723 | D44: 3.968063872 | E44: -5.909542699 | F44: 8.58750827 | G44: -5.909542699 | H44: 8.58750827
C45: -0.9550898204 | D45: 3.95508982 | E45: -5.948009195 | F45: 8.407709584 | G45: -5.948009195 | H45: 8.407709584
C46: -0.9421157685 | D46: 3.942115768 | E46: -5.98179783 | F46: 8.226973404 | G46: -5.98179783 | H46: 8.226973404
C47: -0.9291417166 | D47: 3.929141717 | E47: -6.010885855 | F47: 8.045421413 | G47: -6.010885855 | H47: 8.045421413
C48: -0.9161676647 | D48: 3.916167665 | E48: -6.035253688 | F48: 7.863175844 | G48: -6.035253688 | H48: 7.863175844
C49: -0.9031936128 | D49: 3.903193613 | E49: -6.054884921 | F49: 7.680359397 | G49: -6.054884921 | H49: 7.680359397
C50: -0.8902195609 | D50: 3.890219561 | E50: -6.069766337 | F50: 7.497095156 | G50: -6.069766337 | H50: 7.497095156
C51: -0.877245509 | D51: 3.877245509 | E51: -6.079887919 | F51: 7.313506506 | G51: -6.079887919 | H51: 7.313506506
C52: -0.8642714571 | D52: 3.864271457 | E52: -6.08524285 | F52: 7.129717052 | G52: -6.08524285 | H52: 7.129717052
C53: -0.8512974052 | D53: 3.851297405 | E53: -6.085827525 | F53: 6.945850533 | G53: -6.085827525 | H53: 6.945850533
C54: -0.8383233533 | D54: 3.838323353 | E54: -6.081641552 | F54: 6.76203074 | G54: -6.081641552 | H54: 6.76203074
C55: -0.8253493014 | D55: 3.825349301 | E55: -6.072687748 | F55: 6.578381432 | G55: -6.072687748 | H55: 6.578381432
C56: -0.8123752495 | D56: 3.81237525 | E56: -6.058972142 | F56: 6.395026256 | G56: -6.058972142 | H56: 6.395026256
C57: -0.7994011976 | D57: 3.799401198 | E57: -6.040503968 | F57: 6.212088656 | G57: -6.040503968 | H57: 6.212088656
C58: -0.7864271457 | D58: 3.786427146 | E58: -6.017295659 | F58: 6.0296918 | G58: -6.017295659 | H58: 6.0296918
C59: -0.7734530938 | D59: 3.773453094 | E59: -5.989362842 | F59: 5.847958489 | G59: -5.989362842 | H59: 5.847958489
C60: -0.7604790419 | D60: 3.760479042 | E60: -5.956724322 | F60: 5.667011078 | G60: -5.956724322 | H60: 5.667011078
C61: -0.74750499 | D61: 3.74750499 | E61: -5.919402074 | F61: 5.486971392 | G61: -5.919402074 | H61: 5.486971392
C62: -0.7345309381 | D62: 3.734530938 | E62: -5.877421225 | F62: 5.307960646 | G62: -5.877421225 | H62: 5.307960646
C63: -0.7215568862 | D63: 3.721556886 | E63: -5.830810041 | F63: 5.130099363 | G63: -5.830810041 | H63: 5.130099363
C64: -0.7085828343 | D64: 3.708582834 | E64: -5.779599902 | F64: 4.953507289 | G64: -5.779599902 | H64: 4.953507289
C65: -0.6956087824 | D65: 3.695608782 | E65: -5.723825287 | F65: 4.77830332 | G65: -5.723825287 | H65: 4.77830332
C66: -0.6826347305 | D66: 3.682634731 | E66: -5.663523747 | F66: 4.604605412 | G66: -5.663523747 | H66: 4.604605412
C67: -0.6696606786 | D67: =m*C67+bb -> 3.669660679 | E67: =D*SIN(D67)*COS(C67)/SIN(C67+D67) -> -5.598735881 | F67: =D*SIN(C67)*SIN(D67)/SIN(C67+D67) -> 4.432530513 | G67: -5.598735881 | H67: 4.432530513
C68: =C67+dt -> -0.6566866267 | D68: 3.656686627 | E68: -5.529505309 | F68: 4.262194473 | G68: =IF(OR(ABS(E68)>xMax,ABS(F68)>yMax),G67,E68) -> -5.529505309 | H68: =IF(OR(ABS(E68)>xMax,ABS(F68)>yMax),H67,F68) -> 4.262194473
C69: -0.6437125749 | D69: 3.643712575 | E69: -5.45587864 | F69: 4.093711974 | G69: -5.45587864 | H69: 4.093711974
C70: -0.630738523 | D70: 3.630738523 | E70: -5.377905446 | F70: 3.92719645 | G70: -5.377905446 | H70: 3.92719645
C71: -0.6177644711 | D71: 3.617764471 | E71: -5.295638223 | F71: 3.762760011 | G71: -5.295638223 | H71: 3.762760011
C72: -0.6047904192 | D72: 3.604790419 | E72: -5.209132359 | F72: 3.600513365 | G72: -5.209132359 | H72: 3.600513365
C73: -0.5918163673 | D73: 3.591816367 | E73: -5.118446095 | F73: 3.440565747 | G73: -5.118446095 | H73: 3.440565747
C74: -0.5788423154 | D74: 3.578842315 | E74: -5.023640487 | F74: 3.283024846 | G74: -5.023640487 | H74: 3.283024846
C75: -0.5658682635 | D75: 3.565868263 | E75: -4.924779365 | F75: 3.127996729 | G75: -4.924779365 | H75: 3.127996729
C76: -0.5528942116 | D76: 3.552894212 | E76: -4.821929289 | F76: 2.975585769 | G76: -4.821929289 | H76: 2.975585769
C77: -0.5399201597 | D77: 3.53992016 | E77: -4.715159504 | F77: 2.825894581 | G77: -4.715159504 | H77: 2.825894581
C78: -0.5269461078 | D78: 3.526946108 | E78: -4.604541895 | F78: 2.679023947 | G78: -4.604541895 | H78: 2.679023947
C79: -0.5139720559 | D79: 3.513972056 | E79: -4.490150936 | F79: 2.53507275 | G79: -4.490150936 | H79: 2.53507275
C80: -0.500998004 | D80: 3.500998004 | E80: -4.372063644 | F80: 2.394137906 | G80: -4.372063644 | H80: 2.394137906
C81: -0.4880239521 | D81: 3.488023952 | E81: -4.250359522 | F81: 2.256314304 | G81: -4.250359522 | H81: 2.256314304
C82: -0.4750499002 | D82: 3.4750499 | E82: -4.12512051 | F82: 2.121694734 | G82: -4.12512051 | H82: 2.121694734
C83: -0.4620758483 | D83: 3.462075848 | E83: -3.996430927 | F83: 1.990369832 | G83: -3.996430927 | H83: 1.990369832
C84: -0.4491017964 | D84: 3.449101796 | E84: -3.864377416 | F84: 1.862428014 | G84: -3.864377416 | H84: 1.862428014
C85: -0.4361277445 | D85: 3.436127745 | E85: -3.729048883 | F85: 1.737955419 | G85: -3.729048883 | H85: 1.737955419
C86: -0.4231536926 | D86: 3.423153693 | E86: -3.590536441 | F86: 1.617035851 | G86: -3.590536441 | H86: 1.617035851
C87: -0.4101796407 | D87: 3.410179641 | E87: -3.448933345 | F87: 1.49975072 | G87: -3.448933345 | H87: 1.49975072
C88: -0.3972055888 | D88: 3.397205589 | E88: -3.304334932 | F88: 1.38617899 | G88: -3.304334932 | H88: 1.38617899
C89: -0.3842315369 | D89: 3.384231537 | E89: -3.156838555 | F89: 1.276397127 | G89: -3.156838555 | H89: 1.276397127
C90: -0.371257485 | D90: 3.371257485 | E90: -3.006543519 | F90: 1.170479041 | G90: -3.006543519 | H90: 1.170479041
C91: -0.3582834331 | D91: 3.358283433 | E91: -2.853551013 | F91: 1.068496045 | G91: -2.853551013 | H91: 1.068496045
C92: -0.3453093812 | D92: 3.345309381 | E92: -2.69796404 | F92: 0.9705167988 | G92: -2.69796404 | H92: 0.9705167988
C93: -0.3323353293 | D93: 3.332335329 | E93: -2.539887353 | F93: 0.87660727 | G93: -2.539887353 | H93: 0.87660727
C94: -0.3193612774 | D94: 3.319361277 | E94: -2.379427378 | F94: 0.7868306843 | G94: -2.379427378 | H94: 0.7868306843
C95: -0.3063872255 | D95: 3.306387226 | E95: -2.216692149 | F95: 0.7012474852 | G95: -2.216692149 | H95: 0.7012474852
C96: -0.2934131737 | D96: 3.293413174 | E96: -2.05179123 | F96: 0.6199152931 | G96: -2.05179123 | H96: 0.6199152931
C97: -0.2804391218 | D97: 3.280439122 | E97: -1.884835642 | F97: 0.542888866 | G97: -1.884835642 | H97: 0.542888866
C98: -0.2674650699 | D98: 3.26746507 | E98: -1.715937792 | F98: 0.4702200634 | G98: -1.715937792 | H98: 0.4702200634
C99: -0.254491018 | D99: 3.254491018 | E99: -1.545211393 | F99: 0.4019578107 | G99: -1.545211393 | H99: 0.4019578107
C100: -0.2415169661 | D100: 3.241516966 | E100: -1.372771388 | F100: 0.3381480666 | G100: -1.372771388 | H100: 0.3381480666
C101: -0.2285429142 | D101: 3.228542914 | E101: -1.198733876 | F101: 0.278833792 | G101: -1.198733876 | H101: 0.278833792
C102: -0.2155688623 | D102: 3.215568862 | E102: -1.023216031 | F102: 0.2240549212 | G102: -1.023216031 | H102: 0.2240549212
C103: -0.2025948104 | D103: 3.20259481 | E103: -0.8463360223 | F103: 0.173848335 | G103: -0.8463360223 | H103: 0.173848335
C104: -0.1896207585 | D104: 3.189620758 | E104: -0.668212938 | F104: 0.1282478357 | G104: -0.668212938 | H104: 0.1282478357
C105: -0.1766467066 | D105: 3.176646707 | E105: -0.4889667021 | F105: 0.0872841248 | G105: -0.4889667021 | H105: 0.0872841248
C106: -0.1636726547 | D106: 3.163672655 | E106: -0.3087179951 | F106: 0.05098478162 | G106: -0.3087179951 | H106: 0.05098478162
C107: -0.1506986028 | D107: 3.150698603 | E107: -0.1275881724 | F107: 0.01937424532 | G107: -0.1275881724 | H107: 0.01937424532
C108: -0.1377245509 | D108: 3.137724551 | E108: 0.05430081749 | F108: -0.007526201781 | G108: 0.05430081749 | H108: -0.007526201781
C109: -0.124750499 | D109: 3.124750499 | E109: 0.2368265148 | F109: -0.02969844853 | G109: 0.2368265148 | H109: -0.02969844853
C110: -0.1117764471 | D110: 3.111776447 | E110: 0.419866031 | F110: -0.04712756708 | G110: 0.419866031 | H110: -0.04712756708
C111: -0.09880239521 | D111: 3.098802395 | E111: 0.603296132 | F111: -0.05980182302 | G111: 0.603296132 | H111: -0.05980182302
C112: -0.08582834331 | D112: 3.085828343 | E112: 0.7869933202 | F112: -0.06771268318 | G112: 0.7869933202 | H112: -0.06771268318
C113: -0.07285429142 | D113: 3.072854291 | E113: 0.9708339187 | F113: -0.07085482145 | G113: 0.9708339187 | H113: -0.07085482145
C114: -0.05988023952 | D114: 3.05988024 | E114: 1.154694154 | F114: -0.06922612234 | G114: 1.154694154 | H114: -0.06922612234
C115: -0.04690618762 | D115: 3.046906188 | E115: 1.338450238 | F115: -0.06282768239 | G115: 1.338450238 | H115: -0.06282768239
C116: -0.03393213573 | D116: 3.033932136 | E116: 1.521978456 | F116: -0.05166380946 | G116: 1.521978456 | H116: -0.05166380946
C117: -0.02095808383 | D117: 3.020958084 | E117: 1.705155243 | F117: -0.03574201981 | G117: 1.705155243 | H117: -0.03574201981
C118: -0.007984031936 | D118: 3.007984032 | E118: 1.887857273 | F118: -0.01507303303 | G118: 1.887857273 | H118: -0.01507303303
C119: 0.00499001996 | D119: 2.99500998 | E119: 2.069961538 | F119: 0.01032923513 | G119: 2.069961538 | H119: 0.01032923513
C120: 0.01796407186 | D120: 2.982035928 | E120: 2.251345434 | F120: 0.04044768218 | G120: 2.251345434 | H120: 0.04044768218
C121: 0.03093812375 | D121: 2.969061876 | E121: 2.431886842 | F121: 0.07526203039 | G121: 2.431886842 | H121: 0.07526203039
C122: 0.04391217565 | D122: 2.956087824 | E122: 2.611464208 | F122: 0.1147488404 | G122: 2.611464208 | H122: 0.1147488404
C123: 0.05688622754 | D123: 2.943113772 | E123: 2.78995663 | F123: 0.1588815272 | G123: 2.78995663 | H123: 0.1588815272
C124: 0.06986027944 | D124: 2.930139721 | E124: 2.967243935 | F124: 0.2076303775 | G124: 2.967243935 | H124: 0.2076303775
C125: 0.08283433134 | D125: 2.917165669 | E125: 3.14320676 | F125: 0.2609625706 | G125: 3.14320676 | H125: 0.2609625706
C126: 0.09580838323 | D126: 2.904191617 | E126: 3.317726636 | F126: 0.3188421996 | G126: 3.317726636 | H126: 0.3188421996
C127: 0.1087824351 | D127: 2.891217565 | E127: 3.490686065 | F127: 0.3812302961 | G127: 3.490686065 | H127: 0.3812302961
C128: 0.121756487 | D128: 2.878243513 | E128: 3.661968599 | F128: 0.4480848562 | G128: 3.661968599 | H128: 0.4480848562
C129: 0.1347305389 | D129: 2.865269461 | E129: 3.83145892 | F129: 0.5193608692 | G129: 3.83145892 | H129: 0.5193608692
C130: 0.1477045908 | D130: 2.852295409 | E130: 3.999042914 | F130: 0.5950103472 | G130: 3.999042914 | H130: 0.5950103472
C131: 0.1606786427 | D131: =m*C131+bb -> 2.839321357 | E131: =D*SIN(D131)*COS(C131)/SIN(C131+D131) -> 4.164607754 | F131: =D*SIN(C131)*SIN(D131)/SIN(C131+D131) -> 0.674982358 | G131: 4.164607754 | H131: 0.674982358
C132: =C131+dt -> 0.1736526946 | D132: 2.826347305 | E132: 4.32804197 | F132: 0.7592230592 | G132: =IF(OR(ABS(E132)>xMax,ABS(F132)>yMax),G131,E132) -> 4.32804197 | H132: =IF(OR(ABS(E132)>xMax,ABS(F132)>yMax),H131,F132) -> 0.7592230592
C133: 0.1866267465 | D133: 2.813373253 | E133: 4.489235527 | F133: 0.8476757342 | G133: 4.489235527 | H133: 0.8476757342
C134: 0.1996007984 | D134: 2.800399202 | E134: 4.6480799 | F134: 0.940280831 | G134: 4.6480799 | H134: 0.940280831
C135: 0.2125748503 | D135: 2.78742515 | E135: 4.804468143 | F135: 1.036976002 | G135: 4.804468143 | H135: 1.036976002
C136: 0.2255489022 | D136: 2.774451098 | E136: 4.958294966 | F136: 1.137696144 | G136: 4.958294966 | H136: 1.137696144
C137: 0.2385229541 | D137: 2.761477046 | E137: 5.109456803 | F137: 1.242373448 | G137: 5.109456803 | H137: 1.242373448
C138: 0.251497006 | D138: 2.748502994 | E138: 5.257851881 | F138: 1.350937436 | G138: 5.257851881 | H138: 1.350937436
C139: 0.2644710579 | D139: 2.735528942 | E139: 5.40338029 | F139: 1.463315017 | G139: 5.40338029 | H139: 1.463315017
C140: 0.2774451098 | D140: 2.72255489 | E140: 5.545944052 | F140: 1.579430531 | G140: 5.545944052 | H140: 1.579430531
C141: 0.2904191617 | D141: 2.709580838 | E141: 5.685447183 | F141: 1.699205801 | G141: 5.685447183 | H141: 1.699205801
C142: 0.3033932136 | D142: 2.696606786 | E142: 5.82179576 | F142: 1.822560185 | G142: 5.82179576 | H142: 1.822560185
C143: 0.3163672655 | D143: 2.683632735 | E143: 5.954897984 | F143: 1.949410635 | G143: 5.954897984 | H143: 1.949410635
C144: 0.3293413174 | D144: 2.670658683 | E144: 6.084664243 | F144: 2.079671745 | G144: 6.084664243 | H144: 2.079671745
C145: 0.3423153693 | D145: 2.657684631 | E145: 6.211007168 | F145: 2.213255815 | G145: 6.211007168 | H145: 2.213255815
C146: 0.3552894212 | D146: 2.644710579 | E146: 6.333841698 | F146: 2.350072909 | G146: 6.333841698 | H146: 2.350072909
C147: 0.3682634731 | D147: 2.631736527 | E147: 6.453085132 | F147: 2.49003091 | G147: 6.453085132 | H147: 2.49003091
C148: 0.381237525 | D148: 2.618762475 | E148: 6.568657187 | F148: 2.633035591 | G148: 6.568657187 | H148: 2.633035591
C149: 0.3942115768 | D149: 2.605788423 | E149: 6.680480053 | F149: 2.778990671 | G149: 6.680480053 | H149: 2.778990671
C150: 0.4071856287 | D150: 2.592814371 | E150: 6.788478444 | F150: 2.927797883 | G150: 6.788478444 | H150: 2.927797883
C151: 0.4201596806 | D151: 2.579840319 | E151: 6.892579646 | F151: 3.07935704 | G151: 6.892579646 | H151: 3.07935704
C152: 0.4331337325 | D152: 2.566866267 | E152: 6.992713574 | F152: 3.233566104 | G152: 6.992713574 | H152: 3.233566104
C153: 0.4461077844 | D153: 2.553892216 | E153: 7.088812809 | F153: 3.39032125 | G153: 7.088812809 | H153: 3.39032125
C154: 0.4590818363 | D154: 2.540918164 | E154: 7.180812651 | F154: 3.54951694 | G154: 7.180812651 | H154: 3.54951694
C155: 0.4720558882 | D155: 2.527944112 | E155: 7.268651161 | F155: 3.711045992 | G155: 7.268651161 | H155: 3.711045992
C156: 0.4850299401 | D156: 2.51497006 | E156: 7.352269199 | F156: 3.874799656 | G156: 7.352269199 | H156: 3.874799656
C157: 0.498003992 | D157: 2.501996008 | E157: 7.431610468 | F157: 4.040667681 | G157: 7.431610468 | H157: 4.040667681
C158: 0.5109780439 | D158: 2.489021956 | E158: 7.50662155 | F158: 4.208538394 | G158: 7.50662155 | H158: 4.208538394
C159: 0.5239520958 | D159: 2.476047904 | E159: 7.577251944 | F159: 4.378298773 | G159: 7.577251944 | H159: 4.378298773
C160: 0.5369261477 | D160: 2.463073852 | E160: 7.643454095 | F160: 4.549834524 | G160: 7.643454095 | H160: 4.549834524
C161: 0.5499001996 | D161: 2.4500998 | E161: 7.705183432 | F161: 4.723030158 | G161: 7.705183432 | H161: 4.723030158
C162: 0.5628742515 | D162: 2.437125749 | E162: 7.762398395 | F162: 4.897769068 | G162: 7.762398395 | H162: 4.897769068
C163: 0.5758483034 | D163: 2.424151697 | E163: 7.815060463 | F163: 5.073933608 | G163: 7.815060463 | H163: 5.073933608
C164: 0.5888223553 | D164: 2.411177645 | E164: 7.863134181 | F164: 5.251405173 | G164: 7.863134181 | H164: 5.251405173
C165: 0.6017964072 | D165: 2.398203593 | E165: 7.906587181 | F165: 5.430064277 | G165: 7.906587181 | H165: 5.430064277
C166: 0.6147704591 | D166: 2.385229541 | E166: 7.945390209 | F166: 5.609790635 | G166: 7.945390209 | H166: 5.609790635
C167: 0.627744511 | D167: 2.372255489 | E167: 7.97951714 | F167: 5.790463243 | G167: 7.97951714 | H167: 5.790463243
C168: 0.6407185629 | D168: 2.359281437 | E168: 8.008944997 | F168: 5.97196046 | G168: 8.008944997 | H168: 5.97196046
C169: 0.6536926148 | D169: 2.346307385 | E169: 8.033653968 | F169: 6.154160091 | G169: 8.033653968 | H169: 6.154160091
C170: 0.6666666667 | D170: 2.333333333 | E170: 8.053627416 | F170: 6.336939466 | G170: 8.053627416 | H170: 6.336939466
C171: 0.6796407186 | D171: 2.320359281 | E171: 8.068851894 | F171: 6.520175527 | G171: 8.068851894 | H171: 6.520175527
C172: 0.6926147705 | D172: 2.30738523 | E172: 8.079317153 | F172: 6.703744907 | G172: 8.079317153 | H172: 6.703744907
C173: 0.7055888224 | D173: 2.294411178 | E173: 8.085016145 | F173: 6.887524014 | G173: 8.085016145 | H173: 6.887524014
C174: 0.7185628743 | D174: 2.281437126 | E174: 8.085945036 | F174: 7.071389116 | G174: 8.085945036 | H174: 7.071389116
C175: 0.7315369261 | D175: 2.268463074 | E175: 8.082103198 | F175: 7.255216423 | G175: 8.082103198 | H175: 7.255216423
C176: 0.744510978 | D176: 2.255489022 | E176: 8.073493218 | F176: 7.438882171 | G176: 8.073493218 | H176: 7.438882171
C177: 0.7574850299 | D177: 2.24251497 | E177: 8.060120894 | F177: 7.622262704 | G177: 8.060120894 | H177: 7.622262704
C178: 0.7704590818 | D178: 2.229540918 | E178: 8.041995228 | F178: 7.805234556 | G178: 8.041995228 | H178: 7.805234556
C179: 0.7834331337 | D179: 2.216566866 | E179: 8.019128424 | F179: 7.987674541 | G179: 8.019128424 | H179: 7.987674541
C180: 0.7964071856 | D180: 2.203592814 | E180: 7.991535878 | F180: 8.169459827 | G180: 7.991535878 | H180: 8.169459827
C181: 0.8093812375 | D181: 2.190618762 | E181: 7.959236165 | F181: 8.350468023 | G181: 7.959236165 | H181: 8.350468023
C182: 0.8223552894 | D182: 2.177644711 | E182: 7.922251034 | F182: 8.530577264 | G182: 7.922251034 | H182: 8.530577264
C183: 0.8353293413 | D183: 2.164670659 | E183: 7.880605384 | F183: 8.709666288 | G183: 7.880605384 | H183: 8.709666288
C184: 0.8483033932 | D184: 2.151696607 | E184: 7.834327254 | F184: 8.887614521 | G184: 7.834327254 | H184: 8.887614521
C185: 0.8612774451 | D185: 2.138722555 | E185: 7.783447802 | F185: 9.064302155 | G185: 7.783447802 | H185: 9.064302155
C186: 0.874251497 | D186: 2.125748503 | E186: 7.728001283 | F186: 9.239610233 | G186: 7.728001283 | H186: 9.239610233
C187: 0.8872255489 | D187: 2.112774451 | E187: 7.668025028 | F187: 9.413420726 | G187: 7.668025028 | H187: 9.413420726
C188: 0.9001996008 | D188: 2.099800399 | E188: 7.603559415 | F188: 9.585616613 | G188: 7.603559415 | H188: 9.585616613
C189: 0.9131736527 | D189: 2.086826347 | E189: 7.534647849 | F189: 9.756081961 | G189: 7.534647849 | H189: 9.756081961
C190: 0.9261477046 | D190: 2.073852295 | E190: 7.461336724 | F190: 9.924702 | G190: 7.461336724 | H190: 9.924702
C191: 0.9391217565 | D191: 2.060878244 | E191: 7.3836754 | F191: 10.09136321 | G191: 7.3836754 | H191: 10.09136321
C192: 0.9520958084 | D192: 2.047904192 | E192: 7.301716161 | F192: 10.25595337 | G192: 7.301716161 | H192: 10.25595337
C193: 0.9650698603 | D193: 2.03493014 | E193: 7.215514189 | F193: 10.41836168 | G193: 7.215514189 | H193: 10.41836168
C194: 0.9780439122 | D194: 2.021956088 | E194: 7.125127521 | F194: 10.57847879 | G194: 7.125127521 | H194: 10.57847879
C195: 0.9910179641 | D195: =m*C195+bb -> 2.008982036 | E195: =D*SIN(D195)*COS(C195)/SIN(C195+D195) -> 7.030617011 | F195: =D*SIN(C195)*SIN(D195)/SIN(C195+D195) -> 10.7361969 | G195: 7.030617011 | H195: 10.7361969
C196: =C195+dt -> 1.003992016 | D196: 1.996007984 | E196: 6.93204629 | F196: 10.89140982 | G196: =IF(OR(ABS(E196)>xMax,ABS(F196)>yMax),G195,E196) -> 6.93204629 | H196: =IF(OR(ABS(E196)>xMax,ABS(F196)>yMax),H195,F196) -> 10.89140982
C197: 1.016966068 | D197: 1.983033932 | E197: 6.829481722 | F197: 11.04401306 | G197: 6.829481722 | H197: 11.04401306
C198: 1.02994012 | D198: 1.97005988 | E198: 6.72299236 | F198: 11.19390387 | G198: 6.72299236 | H198: 11.19390387
C199: 1.042914172 | D199: 1.957085828 | E199: 6.6126499 | F199: 11.34098133 | G199: 6.6126499 | H199: 11.34098133
C200: 1.055888224 | D200: 1.944111776 | E200: 6.498528632 | F200: 11.48514643 | G200: 6.498528632 | H200: 11.48514643
C201: 1.068862275 | D201: 1.931137725 | E201: 6.38070539 | F201: 11.62630209 | G201: 6.38070539 | H201: 11.62630209
... 303 more rows

Sheet Defining Function
A1: Defining a Function in Excel
A3: Computers have very specific rules you must follow when defining a function. If you don't, the program will either not work at all or will work incorrectly.
A5: 1. The Variable used should be the one named in the instruction, usually x, though sometimes y, t, Q (for an angle theta),
A6: or even x and y (for a function of two variables).
A8: 2. Order of Operations: There five arithmetic operations, addition (+), subtraction (-), multiplication (*), division (/), and exponentiation or power (^). When computers see any of these operation symbols, they perform the indicated steps in a very particular order. First, the power is done. Second, products and quotients of adjacent terms is done. Third, and last, sums and differences of adjacent terms are done. So, in 10*x^3 + 5*x – 7, say with x = 2, the first pass only calculates 2^3 and ignores the multiplications and the sums and differences to calculate 2^3 = 8. The second pass looks at 10*8 + 5*2 – 7 and only does the multiplications, so it produces 80 + 10 - 7. The third pass looks at the +’s and –‘s to produce 80 + 10 – 7 = 83.
A10: 3. Parentheses If you need an operation involving more than two adjacent terms, as in Ö4^3 + 6^2, the computer would take the square root of 4 to produce 2^3 + 6^2; it would then cube the 2 and square the 6 to produce 8 + 36; and finally it would add the 8 and the 36 to get 44. If you actually wanted the square root of the entire expression, you would need to use parentheses, as in Ö(4^3 + 6^2) to tell the computer to do all the operations inside the parentheses before taking the square root. Therefore, it would calculate (4^3 + 6^2) = 64 + 36 = 100 and then take the square root of Ö100 = 10.
A12: 4. Built-In Functions Computer programs have built-in functions for most common algebraic functions. In Excel, the square root function is denoted by SQRT(…), so SQRT(100) = 10. Alternatively, you could enter it as 100^.5 or 100^(1/2); notice that parentheses are needed to have the ½ done first. The common trig functions are SIN (…), COS (…), and TAN (…), where the arguments are automatically interpreted as being in radians, not degrees. The logarithm to the base 10 is represented by LOG (…) and the logarithm with the base e, known as the natural logarithm, is LN (…). The corresponding exponential function with base e is EXP (x). If x is the variable, then each of these would be SQRT (x), SIN (x), COS (x), TAN (x), LOG (x) (for log with base 10 ), LN (x) (for log with base e ), and EXP (x).

Sheet Sheet3
